[Event "*** Titled Tuesday 3|2 Blitz"]
[Site "Chess.com"]
[Date "2016.07.05"]
[Round "3"]
[White "daro94"]
[Black "AvitalBor"]
[Result "1-0"]
[WhiteElo "2639"]
[BlackElo "2477"]
[TimeControl "180+2"]
[EndTime "11:33:18 PDT"]
[Termination "daro94 won by resignation"]

1. d4 {[%clk 0:03:01]} 1... Nf6 {[%clk 0:03:00]} 2. c4 {[%clk 0:03:00.9]} 2...
e6 {[%clk 0:03:00.5]} 3. Nf3 {[%clk 0:03:02]} 3... d5 {[%clk 0:02:59.2]} 4. e3
{[%clk 0:03:02.9]} 4... Be7 {[%clk 0:02:56.2]} 5. b3 {[%clk 0:03:03.5]} 5...
Nbd7 {[%clk 0:02:49.8]} 6. Bb2 {[%clk 0:03:04.5]} 6... b6 {[%clk 0:02:48]} 7.
cxd5 {[%clk 0:03:02.5]} 7... exd5 {[%clk 0:02:44.3]} 8. Nc3 {[%clk 0:03:03.8]}
8... Bb7 {[%clk 0:02:43.6]} 9. g3 {[%clk 0:03:05.2]} 9... O-O {[%clk 0:02:44.2]}
10. Bg2 {[%clk 0:03:06.6]} 10... Ne4 {[%clk 0:02:23.2]} 11. O-O {[%clk
0:03:07.2]} 11... f5 {[%clk 0:02:24.2]} 12. Qc2 {[%clk 0:03:04.2]} 12... Bf6
{[%clk 0:02:09.6]} 13. Rac1 {[%clk 0:02:58.7]} 13... c6 {[%clk 0:02:00.9]} 14.
Ne2 {[%clk 0:02:53.8]} 14... Qe7 {[%clk 0:01:52.5]} 15. Nf4 {[%clk 0:02:54]}
15... g5 {[%clk 0:01:50.5]} 16. Nd3 {[%clk 0:02:55.1]} 16... Rac8 {[%clk
0:01:45.2]} 17. Nfe5 {[%clk 0:02:45.8]} 17... Ba6 {[%clk 0:01:39.3]} 18. Rfd1
{[%clk 0:02:23.7]} 18... Bxd3 {[%clk 0:01:28.6]} 19. Nxd3 {[%clk 0:02:21.7]}
19... h5 {[%clk 0:01:27.9]} 20. a4 {[%clk 0:02:07.5]} 20... h4 {[%clk
0:01:09.7]} 21. b4 {[%clk 0:02:07]} 21... Qh7 {[%clk 0:01:00.8]} 22. b5 {[%clk
0:02:00.2]} 22... c5 {[%clk 0:00:41.8]} 23. dxc5 {[%clk 0:01:50.7]} 23... Ndxc5
{[%clk 0:00:41.5]} 24. Bxf6 {[%clk 0:01:46.8]} 24... Rxf6 {[%clk 0:00:38.1]} 25.
Nb4 {[%clk 0:01:04.8]} 25... hxg3 {[%clk 0:00:27.2]} 26. hxg3 {[%clk 0:00:55.1]}
26... Qh5 {[%clk 0:00:26.7]} 27. Nxd5 {[%clk 0:00:52.8]} 27... Rh6 {[%clk
0:00:27.7]} 28. Ne7+ {[%clk 0:00:50.7]} 28... Kf8 {[%clk 0:00:19.9]} 29. Nxc8
{[%clk 0:00:45.7]} 1-0

[Event "*** Titled Tuesday 3|2 Blitz"]
[Site "Chess.com"]
[Date "2016.07.05"]
[Round "3"]
[White "ZEN-22"]
[Black "Blitzstream"]
[Result "0-1"]
[WhiteElo "2329"]
[BlackElo "2511"]
[TimeControl "180+2"]
[EndTime "11:33:37 PDT"]
[Termination "Blitzstream won by resignation"]

1. e3 {[%clk 0:03:01.9]} 1... d5 {[%clk 0:02:59.6]} 2. Ne2 {[%clk 0:03:03.4]}
2... Bf5 {[%clk 0:02:59.3]} 3. c4 {[%clk 0:03:04.4]} 3... c6 {[%clk 0:02:56.9]}
4. Ng3 {[%clk 0:03:04.4]} 4... Bg6 {[%clk 0:02:57.7]} 5. Nc3 {[%clk 0:03:04.9]}
5... e6 {[%clk 0:02:58]} 6. d4 {[%clk 0:03:03.4]} 6... Nf6 {[%clk 0:02:58.4]} 7.
f3 {[%clk 0:03:04.2]} 7... Bd6 {[%clk 0:02:58.7]} 8. e4 {[%clk 0:02:58.3]} 8...
Bxg3+ {[%clk 0:02:57.2]} 9. hxg3 {[%clk 0:02:59.2]} 9... dxe4 {[%clk 0:02:58.8]}
10. Bg5 {[%clk 0:03:00]} 10... exf3 {[%clk 0:02:52.2]} 11. gxf3 {[%clk
0:02:59.5]} 11... Nbd7 {[%clk 0:02:48.6]} 12. Qd2 {[%clk 0:02:59.3]} 12... Qa5
{[%clk 0:02:47.2]} 13. Bd3 {[%clk 0:02:47.3]} 13... Bxd3 {[%clk 0:02:38.8]} 14.
Bxf6 {[%clk 0:02:48.7]} 14... Nxf6 {[%clk 0:02:15.9]} 15. Qxd3 {[%clk
0:02:48.9]} 15... O-O-O {[%clk 0:02:17.1]} 16. O-O-O {[%clk 0:02:50.3]} 16...
Rd7 {[%clk 0:02:12.9]} 17. a3 {[%clk 0:02:50]} 17... Rhd8 {[%clk 0:02:13.2]} 18.
Qe3 {[%clk 0:02:50.4]} 18... Qa6 {[%clk 0:02:05.1]} 19. c5 {[%clk 0:02:37.9]}
19... Qc4 {[%clk 0:02:02.1]} 20. Rh4 {[%clk 0:02:37.8]} 20... Nd5 {[%clk
0:01:54.4]} 21. Qd3 {[%clk 0:02:25.6]} 21... Qxd3 {[%clk 0:01:51.5]} 22. Rxd3
{[%clk 0:02:27.5]} 22... Nxc3 {[%clk 0:01:37.9]} 23. bxc3 {[%clk 0:02:28.6]}
23... h6 {[%clk 0:01:38.3]} 24. Re3 {[%clk 0:02:28.9]} 24... Rd5 {[%clk
0:01:37]} 25. g4 {[%clk 0:02:22.7]} 25... Kc7 {[%clk 0:01:32.9]} 26. f4 {[%clk
0:02:22.8]} 26... R8d7 {[%clk 0:01:32]} 27. Kc2 {[%clk 0:02:23.2]} 27... b6
{[%clk 0:01:31]} 28. cxb6+ {[%clk 0:02:23.5]} 28... axb6 {[%clk 0:01:32.8]} 29.
Rh5 {[%clk 0:02:23.6]} 29... Rxh5 {[%clk 0:01:22.2]} 30. gxh5 {[%clk 0:02:25.5]}
30... Rd5 {[%clk 0:01:23.7]} 31. Rg3 {[%clk 0:02:26.4]} 31... Rxh5 {[%clk
0:01:24.5]} 32. Rxg7 {[%clk 0:02:27.5]} 32... Rf5 {[%clk 0:01:26.1]} 33. Rg4
{[%clk 0:02:24.7]} 33... b5 {[%clk 0:01:23.7]} 34. Kd3 {[%clk 0:02:25.7]} 34...
Kb6 {[%clk 0:01:25]} 35. Ke4 {[%clk 0:02:26]} 35... c5 {[%clk 0:01:17.9]} 36.
Rg8 {[%clk 0:02:22.4]} 36... cxd4 {[%clk 0:01:18.8]} 37. cxd4 {[%clk 0:02:23.4]}
37... h5 {[%clk 0:01:19.7]} 38. Rb8+ {[%clk 0:02:12.4]} 38... Ka6 {[%clk
0:01:20]} 39. Ra8+ {[%clk 0:02:13.2]} 39... Kb7 {[%clk 0:01:21.3]} 40. Rh8
{[%clk 0:02:13.1]} 40... Kc6 {[%clk 0:01:20.7]} 41. Rc8+ {[%clk 0:02:12.8]}
41... Kd6 {[%clk 0:01:21.7]} 42. Rd8+ {[%clk 0:02:14]} 42... Ke7 {[%clk
0:01:22.4]} 43. Rh8 {[%clk 0:02:15]} 43... Kf6 {[%clk 0:01:23.3]} 44. Rh7 {[%clk
0:02:14.3]} 44... Kg6 {[%clk 0:01:24.1]} 45. Rh8 {[%clk 0:02:15.4]} 45... Kg7
{[%clk 0:01:25.4]} 46. Rc8 {[%clk 0:02:15.7]} 46... h4 {[%clk 0:01:24.5]} 47.
Rc3 {[%clk 0:02:16.2]} 47... Kg6 {[%clk 0:01:23.5]} 48. Rh3 {[%clk 0:02:12.1]}
48... Kh5 {[%clk 0:01:24.1]} 49. Rh1 {[%clk 0:02:12.5]} 49... Rf6 {[%clk
0:01:22.4]} 50. Kf3 {[%clk 0:02:10.8]} 50... Rg6 {[%clk 0:01:22.8]} 51. f5
{[%clk 0:02:07]} 51... exf5 {[%clk 0:01:22]} 52. Kf4 {[%clk 0:02:08.2]} 52...
Rg4+ {[%clk 0:01:22.5]} 53. Kxf5 {[%clk 0:02:09.6]} 53... Rxd4 {[%clk 0:01:24]}
54. Rb1 {[%clk 0:02:05.3]} 54... Rd5+ {[%clk 0:01:20.5]} 55. Kf4 {[%clk
0:02:06.5]} 55... Kg6 {[%clk 0:01:18.4]} 56. Rg1+ {[%clk 0:02:05.9]} 56... Kf6
{[%clk 0:01:19.5]} 57. Rh1 {[%clk 0:02:06.8]} 57... Rh5 {[%clk 0:01:20.2]} 58.
Kg4 {[%clk 0:02:08.2]} 58... Kg6 {[%clk 0:01:21.3]} 59. Rc1 {[%clk 0:02:08.1]}
59... h3 {[%clk 0:01:20.4]} 60. Rh1 {[%clk 0:02:07.7]} 60... h2 {[%clk
0:01:21.4]} 61. Kg3 {[%clk 0:02:08.8]} 61... Kg5 {[%clk 0:01:22.6]} 62. Kg2
{[%clk 0:02:09.9]} 62... Kg4 {[%clk 0:01:24]} 63. Kf2 {[%clk 0:02:08.1]} 63...
f5 {[%clk 0:01:23]} 64. Kg2 {[%clk 0:02:07.7]} 64... f4 {[%clk 0:01:24.3]} 65.
Kf2 {[%clk 0:02:08.8]} 65... f3 {[%clk 0:01:25.6]} 66. Ke3 {[%clk 0:02:04.5]}
66... Kg3 {[%clk 0:01:25.3]} 67. Kd3 {[%clk 0:02:05.5]} 67... Kg2 {[%clk
0:01:26.5]} 68. Kc3 {[%clk 0:02:07.4]} 68... Kxh1 {[%clk 0:01:27.6]} 0-1

[Event "*** Titled Tuesday 3|2 Blitz"]
[Site "Chess.com"]
[Date "2016.07.05"]
[Round "3"]
[White "Dlugy"]
[Black "FCChelsea14"]
[Result "1-0"]
[WhiteElo "2603"]
[BlackElo "2406"]
[TimeControl "180+2"]
[EndTime "11:33:38 PDT"]
[Termination "Dlugy won by resignation"]

1. d4 {[%clk 0:03:01.9]} 1... Nf6 {[%clk 0:02:57.8]} 2. Bf4 {[%clk 0:03:02.7]}
2... d5 {[%clk 0:02:53.8]} 3. e3 {[%clk 0:03:03.2]} 3... c5 {[%clk 0:02:54.3]}
4. dxc5 {[%clk 0:03:03.6]} 4... Qa5+ {[%clk 0:02:48.3]} 5. Nc3 {[%clk
0:03:02.1]} 5... Qxc5 {[%clk 0:02:46.7]} 6. Nb5 {[%clk 0:03:02.1]} 6... Na6
{[%clk 0:02:47.6]} 7. c3 {[%clk 0:03:03.3]} 7... g6 {[%clk 0:02:38]} 8. Be5
{[%clk 0:03:04]} 8... Bg7 {[%clk 0:02:24.2]} 9. Bd4 {[%clk 0:03:05.1]} 9... Qc6
{[%clk 0:02:22.7]} 10. Nxa7 {[%clk 0:03:06.1]} 10... Qe6 {[%clk 0:02:23.6]} 11.
Nxc8 {[%clk 0:03:04.5]} 11... Qxc8 {[%clk 0:02:23.9]} 12. Bb5+ {[%clk
0:03:04.9]} 12... Kf8 {[%clk 0:02:25]} 13. Nf3 {[%clk 0:03:02.9]} 13... Nc5
{[%clk 0:02:21]} 14. Bxf6 {[%clk 0:02:56.3]} 14... Bxf6 {[%clk 0:02:20.2]} 15.
Qxd5 {[%clk 0:02:57.9]} 15... Kg7 {[%clk 0:02:18.9]} 16. O-O {[%clk 0:02:57.4]}
16... Rd8 {[%clk 0:02:13.2]} 17. Qc4 {[%clk 0:02:58.4]} 17... Qf5 {[%clk
0:02:11]} 18. Nd4 {[%clk 0:02:55.6]} 18... Qh5 {[%clk 0:02:10.5]} 19. Qe2 {[%clk
0:02:54.8]} 19... Qh4 {[%clk 0:02:03]} 20. Rfd1 {[%clk 0:02:49.9]} 20... Ne4
{[%clk 0:01:55.9]} 21. Bd3 {[%clk 0:02:46.7]} 21... Nc5 {[%clk 0:01:51.9]} 22.
Bc2 {[%clk 0:02:47.8]} 22... e5 {[%clk 0:01:41.3]} 23. Nf3 {[%clk 0:02:47.7]}
23... Qh5 {[%clk 0:01:42.2]} 24. Rxd8 {[%clk 0:02:25.2]} 24... Rxd8 {[%clk
0:01:30.3]} 25. Qc4 {[%clk 0:02:18.2]} 25... e4 {[%clk 0:01:19]} 26. Nd4 {[%clk
0:02:10.5]} 26... Be5 {[%clk 0:01:20.1]} 27. h3 {[%clk 0:02:09.7]} 27... Bb8
{[%clk 0:01:20.2]} 28. Rd1 {[%clk 0:02:01.4]} 28... Nd3 {[%clk 0:00:54.3]} 29.
Qb5 {[%clk 0:01:25.2]} 29... Rd5 {[%clk 0:00:47.8]} 30. Qxb7 {[%clk 0:01:22]}
30... Qe5 {[%clk 0:00:46.2]} 31. Bxd3 {[%clk 0:01:19.4]} 31... exd3 {[%clk
0:00:08.7]} 32. Rxd3 {[%clk 0:01:19.3]} 32... Rc5 {[%clk 0:00:06.6]} 33. Nf3
{[%clk 0:01:16.2]} 33... Qf5 {[%clk 0:00:06.9]} 34. e4 {[%clk 0:01:05]} 34...
Qf4 {[%clk 0:00:06.5]} 35. g3 {[%clk 0:01:06.5]} 35... Qc1+ {[%clk 0:00:07]} 36.
Kg2 {[%clk 0:01:08.2]} 36... Qc2 {[%clk 0:00:06.8]} 37. Rd7 {[%clk 0:01:02.4]}
37... Bc7 {[%clk 0:00:05.3]} 1-0

[Event "*** Titled Tuesday 3|2 Blitz"]
[Site "Chess.com"]
[Date "2016.07.05"]
[Round "3"]
[White "saraswathii"]
[Black "FLchessplayer"]
[Result "1-0"]
[WhiteElo "2001"]
[BlackElo "2059"]
[TimeControl "180+2"]
[EndTime "11:33:48 PDT"]
[Termination "saraswathii won by resignation"]

1. e4 {[%clk 0:03:01.9]} 1... c5 {[%clk 0:03:00.2]} 2. Nf3 {[%clk 0:03:02]} 2...
d6 {[%clk 0:03:01.4]} 3. d3 {[%clk 0:03:02.3]} 3... g6 {[%clk 0:03:01.5]} 4. g3
{[%clk 0:03:03.4]} 4... Bg7 {[%clk 0:03:02.7]} 5. Bg2 {[%clk 0:03:04.3]} 5...
Nc6 {[%clk 0:03:03.9]} 6. O-O {[%clk 0:03:04.7]} 6... e5 {[%clk 0:03:01.1]} 7.
c3 {[%clk 0:03:05]} 7... Nge7 {[%clk 0:03:02]} 8. a3 {[%clk 0:03:05.7]} 8... Be6
{[%clk 0:03:02.6]} 9. b4 {[%clk 0:03:02.9]} 9... b6 {[%clk 0:03:02.6]} 10. b5
{[%clk 0:03:00.8]} 10... Nb8 {[%clk 0:03:01.5]} 11. c4 {[%clk 0:02:58]} 11... h6
{[%clk 0:02:59.4]} 12. a4 {[%clk 0:02:57.2]} 12... Nd7 {[%clk 0:02:57.1]} 13.
Bb2 {[%clk 0:02:54.2]} 13... O-O {[%clk 0:02:57.8]} 14. a5 {[%clk 0:02:52.4]}
14... Kh7 {[%clk 0:02:58.1]} 15. Nbd2 {[%clk 0:02:48.8]} 15... Qc7 {[%clk
0:02:58.7]} 16. Nh4 {[%clk 0:02:43.5]} 16... f5 {[%clk 0:02:57.9]} 17. exf5
{[%clk 0:02:38.4]} 17... gxf5 {[%clk 0:02:58]} 18. Bxa8 {[%clk 0:02:37.7]} 18...
Rxa8 {[%clk 0:02:56.8]} 19. f4 {[%clk 0:02:35.2]} 19... Rg8 {[%clk 0:02:55.5]}
20. fxe5 {[%clk 0:02:29.9]} 20... Nxe5 {[%clk 0:02:55.4]} 21. Qe2 {[%clk
0:02:27.5]} 21... bxa5 {[%clk 0:02:55.1]} 22. Ndf3 {[%clk 0:02:22]} 22... N7g6
{[%clk 0:02:49.3]} 23. Nxg6 {[%clk 0:02:21.5]} 23... Kxg6 {[%clk 0:02:50.6]} 24.
Nh4+ {[%clk 0:02:18.2]} 24... Kh7 {[%clk 0:02:48.3]} 25. Nxf5 {[%clk 0:02:18.7]}
25... Bxf5 {[%clk 0:02:46.8]} 26. Rxf5 {[%clk 0:02:18.9]} 26... Re8 {[%clk
0:02:45.8]} 27. Raf1 {[%clk 0:02:06.6]} 27... Kh8 {[%clk 0:02:45.6]} 28. Bxe5
{[%clk 0:02:05]} 28... Bxe5 {[%clk 0:02:42.8]} 29. Rf8+ {[%clk 0:02:02.6]} 29...
Rxf8 {[%clk 0:02:41.2]} 30. Rxf8+ {[%clk 0:02:04.5]} 30... Kg7 {[%clk
0:02:41.4]} 31. Rf5 {[%clk 0:02:01.9]} 31... Qe7 {[%clk 0:02:40.5]} 32. Qg4+
{[%clk 0:02:01.4]} 32... Kh7 {[%clk 0:02:39.5]} 33. Kg2 {[%clk 0:01:42.9]} 33...
a4 {[%clk 0:02:39.2]} 34. Qe4 {[%clk 0:01:41.2]} 34... Kg7 {[%clk 0:02:34.6]}
35. Rf2 {[%clk 0:01:38.5]} 35... Qc7 {[%clk 0:02:29.7]} 36. Qg4+ {[%clk
0:01:36.8]} 36... Kh7 {[%clk 0:02:24.2]} 37. Qe6 {[%clk 0:01:35.8]} 37... Kg7
{[%clk 0:02:06.9]} 38. Qe8 {[%clk 0:01:33.6]} 38... Qb7+ {[%clk 0:01:53.7]} 39.
Kh3 {[%clk 0:01:24.3]} 39... Bf6 {[%clk 0:01:53.5]} 40. Qe6 {[%clk 0:01:21]}
40... Be5 {[%clk 0:01:49.9]} 41. Qe8 {[%clk 0:01:15.3]} 41... Bf6 {[%clk
0:01:49]} 42. Qc6 {[%clk 0:01:16]} 42... Qe7 {[%clk 0:01:43.9]} 43. Qa6 {[%clk
0:01:16]} 43... Qe6+ {[%clk 0:01:41.5]} 44. Kg2 {[%clk 0:01:16]} 44... Qe3
{[%clk 0:01:27.6]} 45. Qxd6 {[%clk 0:01:10.3]} 45... Bd4 {[%clk 0:01:21.9]} 46.
Qd7+ {[%clk 0:01:08.3]} 46... Kg8 {[%clk 0:01:07.6]} 47. Qf7+ {[%clk 0:01:03.8]}
47... Kh8 {[%clk 0:01:08.2]} 48. Qf8+ {[%clk 0:01:03.8]} 48... Kh7 {[%clk
0:01:08.3]} 49. Rf7+ {[%clk 0:01:04.2]} 49... Kg6 {[%clk 0:01:09.4]} 50. Qg8+
{[%clk 0:01:05]} 50... Kh5 {[%clk 0:01:06.7]} 51. Rf5+ {[%clk 0:01:05.2]} 1-0

[Event "*** Titled Tuesday 3|2 Blitz"]
[Site "Chess.com"]
[Date "2016.07.05"]
[Round "3"]
[White "Aguiar94"]
[Black "ChessNinja48"]
[Result "0-1"]
[WhiteElo "2475"]
[BlackElo "2327"]
[TimeControl "180+2"]
[EndTime "11:33:50 PDT"]
[Termination "ChessNinja48 won on time"]

1. e4 {[%clk 0:03:01.9]} 1... e5 {[%clk 0:03:00.2]} 2. Nf3 {[%clk 0:03:01.9]}
2... Nc6 {[%clk 0:03:01.2]} 3. d4 {[%clk 0:02:59.9]} 3... exd4 {[%clk
0:03:02.2]} 4. Nxd4 {[%clk 0:03:01.8]} 4... Nf6 {[%clk 0:03:02.8]} 5. Nxc6
{[%clk 0:03:02.2]} 5... bxc6 {[%clk 0:03:04]} 6. e5 {[%clk 0:03:03.4]} 6... Qe7
{[%clk 0:03:05.4]} 7. Qe2 {[%clk 0:03:04.7]} 7... Nd5 {[%clk 0:03:06.8]} 8. Nd2
{[%clk 0:03:06.3]} 8... a5 {[%clk 0:03:03]} 9. c4 {[%clk 0:03:06.6]} 9... Nb6
{[%clk 0:02:47.6]} 10. Qe4 {[%clk 0:03:01.8]} 10... Na4 {[%clk 0:02:16.3]} 11.
Be2 {[%clk 0:02:55.2]} 11... Nc5 {[%clk 0:02:16.3]} 12. Qe3 {[%clk 0:02:53.6]}
12... d6 {[%clk 0:02:00.3]} 13. Nf3 {[%clk 0:02:39.7]} 13... g6 {[%clk
0:01:24.5]} 14. Nd4 {[%clk 0:02:04.7]} 14... Bd7 {[%clk 0:01:17.4]} 15. exd6
{[%clk 0:01:40]} 15... cxd6 {[%clk 0:01:18.1]} 16. O-O {[%clk 0:01:27.6]} 16...
Qxe3 {[%clk 0:01:08.5]} 17. Bxe3 {[%clk 0:01:29.5]} 17... Bg7 {[%clk 0:01:02.2]}
18. Rad1 {[%clk 0:01:23.4]} 18... Ke7 {[%clk 0:00:52.9]} 19. Bf3 {[%clk
0:01:14]} 19... Rhc8 {[%clk 0:00:44]} 20. Rfe1 {[%clk 0:01:14.1]} 20... Ne6
{[%clk 0:00:45]} 21. Bg5+ {[%clk 0:01:05.9]} 21... Kf8 {[%clk 0:00:35.9]} 22.
Nxe6+ {[%clk 0:00:56.1]} 22... Bxe6 {[%clk 0:00:37.4]} 23. b3 {[%clk 0:00:57.5]}
23... d5 {[%clk 0:00:26.2]} 24. cxd5 {[%clk 0:00:51.6]} 24... cxd5 {[%clk
0:00:27.4]} 25. Bxd5 {[%clk 0:00:53.2]} 25... Bxd5 {[%clk 0:00:28.4]} 26. Rxd5
{[%clk 0:00:55.1]} 26... a4 {[%clk 0:00:30]} 27. g3 {[%clk 0:00:43]} 27... Rcb8
{[%clk 0:00:28.5]} 28. Rb1 {[%clk 0:00:33.5]} 28... Rb4 {[%clk 0:00:19.5]} 29.
Bd2 {[%clk 0:00:32]} 29... Re4 {[%clk 0:00:20.6]} 0-1

[Event "*** Titled Tuesday 3|2 Blitz"]
[Site "Chess.com"]
[Date "2016.07.05"]
[Round "3"]
[White "RobertRis"]
[Black "viditchess"]
[Result "0-1"]
[WhiteElo "2422"]
[BlackElo "2517"]
[TimeControl "180+2"]
[EndTime "11:33:58 PDT"]
[Termination "viditchess won by resignation"]

1. Nf3 {[%clk 0:03:01.9]} 1... Nf6 {[%clk 0:02:59.5]} 2. g3 {[%clk 0:03:03]}
2... g6 {[%clk 0:03:01]} 3. b3 {[%clk 0:03:04.4]} 3... b6 {[%clk 0:03:02.4]} 4.
Bb2 {[%clk 0:03:05.5]} 4... Bg7 {[%clk 0:03:04.1]} 5. Bg2 {[%clk 0:03:06.8]}
5... Bb7 {[%clk 0:03:05.9]} 6. O-O {[%clk 0:03:08.1]} 6... O-O {[%clk
0:03:07.4]} 7. c4 {[%clk 0:03:09.3]} 7... e6 {[%clk 0:03:09.1]} 8. Nc3 {[%clk
0:03:09.4]} 8... Qe7 {[%clk 0:03:10.5]} 9. d4 {[%clk 0:03:09]} 9... Ne4 {[%clk
0:03:12]} 10. Qc2 {[%clk 0:03:09.5]} 10... Nxc3 {[%clk 0:03:10.3]} 11. Bxc3
{[%clk 0:03:10.4]} 11... c5 {[%clk 0:03:10.4]} 12. Rad1 {[%clk 0:03:10.3]} 12...
d6 {[%clk 0:03:04]} 13. Rd2 {[%clk 0:03:03.1]} 13... Nc6 {[%clk 0:02:57.7]} 14.
Rfd1 {[%clk 0:03:01.3]} 14... Rad8 {[%clk 0:02:56.7]} 15. d5 {[%clk 0:02:55.5]}
15... Bxc3 {[%clk 0:02:35.3]} 16. Qxc3 {[%clk 0:02:50.1]} 16... exd5 {[%clk
0:02:36.5]} 17. cxd5 {[%clk 0:02:39.6]} 17... Nb8 {[%clk 0:02:28.8]} 18. Re1
{[%clk 0:02:34.1]} 18... Nd7 {[%clk 0:02:24.5]} 19. e4 {[%clk 0:02:34.4]} 19...
f6 {[%clk 0:02:19.2]} 20. Bh3 {[%clk 0:02:28.4]} 20... Bc8 {[%clk 0:02:00]} 21.
Be6+ {[%clk 0:02:20.8]} 21... Kh8 {[%clk 0:01:58.4]} 22. Kg2 {[%clk 0:02:01.3]}
22... Qg7 {[%clk 0:01:46]} 23. Rf1 {[%clk 0:01:39.7]} 23... Ba6 {[%clk
0:01:43.1]} 24. Re1 {[%clk 0:01:38.8]} 24... Ne5 {[%clk 0:01:44.4]} 25. Ng1
{[%clk 0:01:36.4]} 25... g5 {[%clk 0:01:43.3]} 26. h3 {[%clk 0:01:32.4]} 26...
Bc8 {[%clk 0:01:41.9]} 27. Bxc8 {[%clk 0:01:27.7]} 27... Rxc8 {[%clk 0:01:42.2]}
28. f3 {[%clk 0:01:27.7]} 28... f5 {[%clk 0:01:42.1]} 29. exf5 {[%clk 0:01:20]}
29... Rxf5 {[%clk 0:01:44]} 30. Re4 {[%clk 0:01:21.1]} 30... Rcf8 {[%clk
0:01:44.4]} 31. Rf2 {[%clk 0:01:19.1]} 31... Kg8 {[%clk 0:01:44.5]} 32. a4
{[%clk 0:01:18.5]} 32... Qf7 {[%clk 0:01:45.2]} 33. f4 {[%clk 0:01:16.4]} 33...
Qxd5 {[%clk 0:01:43.7]} 34. Qe3 {[%clk 0:01:12.4]} 34... Ng6 {[%clk 0:01:38.9]}
35. Ne2 {[%clk 0:00:56.2]} 35... Qf7 {[%clk 0:01:30.3]} 36. Kh2 {[%clk
0:00:49.7]} 36... d5 {[%clk 0:01:30.3]} 37. Re6 {[%clk 0:00:49.8]} 37... d4
{[%clk 0:01:27.9]} 38. Qe4 {[%clk 0:00:50.6]} 38... d3 {[%clk 0:01:28.9]} 39.
Nc3 {[%clk 0:00:51.7]} 39... gxf4 {[%clk 0:01:29.7]} 40. g4 {[%clk 0:00:45.5]}
40... Rf6 {[%clk 0:01:28.7]} 41. Rxf6 {[%clk 0:00:42.2]} 41... Qxf6 {[%clk
0:01:30.6]} 42. Qxd3 {[%clk 0:00:43.4]} 42... f3 {[%clk 0:01:29.4]} 43. Ne4
{[%clk 0:00:30.5]} 43... Qf4+ {[%clk 0:01:22.9]} 44. Ng3 {[%clk 0:00:31.6]}
44... Ne5 {[%clk 0:01:20.4]} 45. Qd5+ {[%clk 0:00:30.8]} 45... Kh8 {[%clk
0:01:21.4]} 46. a5 {[%clk 0:00:28.5]} 46... h5 {[%clk 0:01:15.9]} 47. axb6
{[%clk 0:00:19.4]} 47... h4 {[%clk 0:01:16.8]} 0-1

[Event "*** Titled Tuesday 3|2 Blitz"]
[Site "Chess.com"]
[Date "2016.07.05"]
[Round "3"]
[White "ftorodent"]
[Black "SavelijTartakover"]
[Result "1-0"]
[WhiteElo "2389"]
[BlackElo "2539"]
[TimeControl "180+2"]
[EndTime "11:34:21 PDT"]
[Termination "ftorodent won by resignation"]

1. d4 {[%clk 0:03:01.9]} 1... Nf6 {[%clk 0:02:55.8]} 2. c4 {[%clk 0:03:02.5]}
2... g6 {[%clk 0:02:56.1]} 3. Nc3 {[%clk 0:03:02]} 3... Bg7 {[%clk 0:02:56.8]}
4. e4 {[%clk 0:03:02.2]} 4... O-O {[%clk 0:02:57.5]} 5. Nf3 {[%clk 0:03:03.9]}
5... d6 {[%clk 0:02:58.5]} 6. Be2 {[%clk 0:03:05]} 6... e5 {[%clk 0:02:59.4]} 7.
O-O {[%clk 0:03:06.1]} 7... Nc6 {[%clk 0:03:00.4]} 8. d5 {[%clk 0:03:06.9]} 8...
Ne7 {[%clk 0:03:01.5]} 9. b4 {[%clk 0:03:08]} 9... Nh5 {[%clk 0:03:01.1]} 10.
Re1 {[%clk 0:03:07.9]} 10... h6 {[%clk 0:03:01.3]} 11. Bd2 {[%clk 0:02:50.8]}
11... Nf4 {[%clk 0:02:49.4]} 12. Bf1 {[%clk 0:02:50.5]} 12... f5 {[%clk
0:02:48.3]} 13. Bxf4 {[%clk 0:02:49.7]} 13... exf4 {[%clk 0:02:47.4]} 14. e5
{[%clk 0:02:50.7]} 14... g5 {[%clk 0:02:36.9]} 15. Rc1 {[%clk 0:02:42.1]} 15...
g4 {[%clk 0:02:16.9]} 16. exd6 {[%clk 0:02:42.8]} 16... Qxd6 {[%clk 0:02:18.2]}
17. c5 {[%clk 0:02:34.7]} 17... Qf6 {[%clk 0:02:18.9]} 18. Ne5 {[%clk
0:01:58.6]} 18... Ng6 {[%clk 0:02:15.3]} 19. Nxg6 {[%clk 0:01:48.6]} 19... Qxg6
{[%clk 0:02:16.4]} 20. Nb5 {[%clk 0:01:47.9]} 20... Bd7 {[%clk 0:01:49.3]} 21.
Nxc7 {[%clk 0:01:43.5]} 21... Rac8 {[%clk 0:01:50.2]} 22. Ne6 {[%clk 0:01:44.2]}
22... Bxe6 {[%clk 0:01:46.9]} 23. Rxe6 {[%clk 0:01:43.9]} 23... Qg5 {[%clk
0:01:46]} 24. d6 {[%clk 0:01:29.9]} 24... f3 {[%clk 0:01:43]} 25. g3 {[%clk
0:01:07.8]} 25... f4 {[%clk 0:01:35.3]} 26. Rc4 {[%clk 0:01:08.2]} 26... fxg3
{[%clk 0:01:32.6]} 27. hxg3 {[%clk 0:01:09.2]} 27... Rcd8 {[%clk 0:01:20]} 28.
Qc2 {[%clk 0:01:08.3]} 28... Rf6 {[%clk 0:01:15.2]} 29. Rxf6 {[%clk 0:00:54.1]}
29... Bxf6 {[%clk 0:01:13.2]} 30. Qe4 {[%clk 0:00:42.1]} 30... h5 {[%clk
0:01:08.1]} 31. Qxb7 {[%clk 0:00:41.2]} 31... h4 {[%clk 0:00:48.2]} 32. gxh4
{[%clk 0:00:41.9]} 32... Qxh4 {[%clk 0:00:20.9]} 33. Qe4 {[%clk 0:00:34.5]}
33... Kh8 {[%clk 0:00:21.9]} 34. c6 {[%clk 0:00:25.3]} 34... Rg8 {[%clk
0:00:16.7]} 35. c7 {[%clk 0:00:22.9]} 35... Qh5 {[%clk 0:00:14.5]} 36. c8=Q
{[%clk 0:00:18.2]} 36... Bd8 {[%clk 0:00:15.2]} 37. Qcf5 {[%clk 0:00:17.3]} 1-0